bitfinex-derivatives/quotes_BTCF0:USTF0_20250722
["timestamp","ask_amount","ask_price","bid_price","bid_amount"]
[1753171161774,1.849214,117990.0,117980.0,0.82399596]
[1753171161977,1.849214,117990.0,117980.0,1.43919596]
[1753171164177,1.849214,117990.0,117980.0,1.44470596]
[1753171165278,1.826854,117990.0,117980.0,2.07110596]
[1753171165668,1.826854,117990.0,117980.0,2.16586738]
[1753171166070,1.826854,117990.0,117980.0,2.16886738]
[1753171166472,1.826854,117990.0,117980.0,2.17286738]
[1753171167470,1.704754,117990.0,117980.0,2.17286738]
[1753171168281,0.204754,117990.0,117980.0,2.45778894]
[1753171168683,0.204754,117990.0,117980.0,2.17286738]
[1753171168883,0.1359034,117990.0,117980.0,2.17286738]
[1753171169184,1.5618868,117990.0,117980.0,2.17286738]
[1753171169483,0.14714,118000.0,117990.0,0.19995736]
[1753171169681,0.14714,118000.0,117990.0,1.48333892]
[1753171169883,0.23875,118000.0,117990.0,1.19841736]
[1753171170082,0.23875,118000.0,117990.0,1.48333892]
[1753171170683,0.23875,118000.0,117990.0,1.48533892]
[1753171171184,0.23875,118000.0,117990.0,1.48833892]
[1753171171577,0.23875,118000.0,117990.0,1.48707892]
[1753171172084,0.23875,118000.0,117990.0,1.20215736]
[1753171172384,0.23875,118000.0,117990.0,1.48707892]
[1753171172584,0.443504,118000.0,117990.0,1.48707892]
[1753171172984,0.443504,118000.0,117990.0,1.54782681]
[1753171174178,0.443504,118000.0,117990.0,2.09690892]
[1753171174379,0.443504,118000.0,117990.0,2.15775163]
[1753171174779,0.443504,118000.0,117990.0,2.16200163]
[1753171175078,0.443504,118000.0,117990.0,2.16326163]
[1753171175284,0.443504,118000.0,117990.0,2.10241892]
[1753171175679,0.443504,118000.0,117990.0,2.38734048]
[1753171175881,0.443504,118000.0,117990.0,2.10241892]
[1753171176686,1.943504,118000.0,117990.0,2.10241892]
[1753171176880,0.328824,118000.0,117990.0,2.38734048]
[1753171177085,0.328824,118000.0,117990.0,2.10241892]
[1753171177385,0.328824,118000.0,117990.0,2.38734048]
[1753171177884,0.328824,118000.0,117990.0,2.44822444]
[1753171178484,0.351894,118000.0,117990.0,2.16330288]
[1753171178685,0.328824,118000.0,117990.0,2.44822444]
[1753171178878,0.2956148,118000.0,117990.0,2.38734048]
[1753171179281,0.1715448,118000.0,117990.0,2.38734048]
[1753171179683,0.2932648,118000.0,117990.0,2.38734048]
[1753171180786,0.3161948,118000.0,117990.0,2.38734048]
[1753171183588,0.3161948,118000.0,117990.0,2.10241892]
[1753171184289,0.3161948,118000.0,117990.0,2.38734048]
[1753171184687,0.2932648,118000.0,117990.0,2.38734048]
[1753171184888,0.2195748,118000.0,117990.0,2.38734048]
[1753171185389,0.2932648,118000.0,117990.0,2.38734048]
[1753171186381,0.2932648,118000.0,117990.0,2.38722048]
[1753171187190,0.2932648,118000.0,117990.0,3.55886048]
[1753171189293,0.1486013,118000.0,117990.0,3.55886048]
[1753171189588,0.11554,118010.0,118000.0,0.3808257]
[1753171189785,0.11554,118010.0,118000.0,1.75486797]
[1753171190293,0.11554,118010.0,118000.0,1.76352762]
[1753171190595,0.06658,118010.0,118000.0,1.76352762]
[1753171190893,0.06658,118010.0,118000.0,1.76452762]
[1753171191089,0.06658,118010.0,118000.0,1.70468847]
[1753171191289,0.02293,118010.0,118000.0,1.7655439]
[1753171191594,1.5,118020.0,118000.0,1.7655439]
[1753171191595,1.62172,118020.0,118010.0,0.4119413]
[1753171191783,1.62172,118020.0,118010.0,1.73239558]
[1753171192188,1.62172,118020.0,118010.0,2.10239558]
[1753171192384,1.62172,118020.0,118010.0,2.39879558]
[1753171192385,1.5,118020.0,118010.0,2.39879558]
[1753171192687,0.12172,118030.0,118020.0,0.8353834]
[1753171192992,0.2031,118030.0,118020.0,1.77750496]
[1753171193188,0.21433,118030.0,118020.0,1.77750496]
[1753171193694,0.23726,118030.0,118020.0,1.77750496]
[1753171193987,0.23926,118030.0,118020.0,1.77750496]
[1753171194386,0.24026,118030.0,118020.0,1.77750496]
[1753171197397,0.23926,118030.0,118020.0,1.77750496]
[1753171197592,0.23726,118030.0,118020.0,1.77750496]
[1753171197797,0.23726,118030.0,118020.0,1.83835768]
[1753171198298,0.23726,118040.0,118030.0,0.2661726]
[1753171198494,0.23726,118040.0,118030.0,1.67127416]
[1753171198694,0.23726,118040.0,118030.0,1.73212688]
[1753171199500,0.23826,118040.0,118030.0,1.73212688]
[1753171199701,0.24026,118040.0,118030.0,2.11287652]
[1753171199902,0.24026,118040.0,118030.0,1.73208688]
[1753171200099,0.24026,118040.0,118030.0,1.67123416]
[1753171200299,0.24026,118040.0,118030.0,0.3608]
[1753171200497,0.24026,118040.0,118010.0,0.07612265]
[1753171200498,0.23726,118020.0,118010.0,0.07612265]
[1753171200696,0.23726,118020.0,118010.0,0.67446003]
[1753171201002,0.23726,118020.0,118010.0,0.7829613]
[1753171201300,0.23726,118020.0,118010.0,1.1437613]
[1753171201499,0.23726,118020.0,118010.0,1.1760713]
[1753171201697,0.23726,118020.0,118010.0,0.5625113]
[1753171201903,0.23726,118020.0,118010.0,1.1880113]
[1753171202102,0.23726,118020.0,118010.0,1.2373713]
[1753171202401,0.23726,118020.0,118010.0,1.3350413]
[1753171202803,0.23726,118020.0,118010.0,1.41116395]
[1753171203205,0.23726,118020.0,118010.0,1.77116395]
[1753171203506,0.07369,118020.0,118010.0,1.77216395]
[1753171203802,0.07096,118030.0,118010.0,1.45573265]
[1753171204704,0.07096,118030.0,118020.0,0.5744769]
[1753171204903,0.07096,118030.0,118020.0,0.8944769]
[1753171205099,0.07096,118030.0,118020.0,0.35231]
[1753171205100,0.16357,118030.0,118020.0,0.35231]
[1753171205304,0.00014,118020.0,118010.0,0.001]
[1753171205608,0.47678,118020.0,118010.0,0.291]
[1753171205803,0.11584,118020.0,118010.0,0.33529]
[1753171205998,0.11584,118020.0,118010.0,0.69509]
[1753171206399,0.11584,118020.0,118010.0,1.4956113]
[1753171206803,0.11584,118020.0,118010.0,1.4513213]
[1753171207005,0.11584,118020.0,118010.0,0.8321813]
[1753171207205,0.11584,118020.0,118010.0,1.4632613]
[1753171207508,0.11584,118020.0,118010.0,1.4633413]
[1753171207809,0.11584,118020.0,118010.0,1.4633813]
[1753171208101,0.47678,118020.0,118010.0,0.9216]
[1753171208302,0.896252,118020.0,118010.0,0.92164]
[1753171209510,1.065639,118020.0,118010.0,0.92184]
[1753171209909,1.065639,118020.0,118010.0,0.1392]
[1753171210103,1.065639,118020.0,118010.0,0.77204]
[1753171210305,1.065639,118020.0,118010.0,0.98284]
[1753171210705,1.065639,118020.0,118010.0,0.98396]
[1753171211006,1.065639,118020.0,118010.0,0.35]
[1753171211208,1.065639,118020.0,118010.0,0.98504]
[1753171211415,1.065639,118020.0,118010.0,0.35]
[1753171211610,0.896252,118020.0,118010.0,0.98504]
[1753171211807,0.896252,118020.0,118010.0,0.35]
[1753171212007,0.896252,118020.0,118010.0,0.98524]
[1753171212714,0.896252,118020.0,118010.0,1.04612057]
[1753171213411,0.535452,118020.0,118010.0,1.21552197]
[1753171213612,0.285452,118020.0,118010.0,1.1546414]
[1753171214118,0.535452,118020.0,118010.0,0.5194014]
[1753171214314,0.896252,118020.0,118010.0,0.41084852]
[1753171215715,0.72678,118020.0,118010.0,0.1694014]
[1753171217114,0.896252,118020.0,118010.0,0.5394014]
[1753171217523,0.896252,118020.0,118010.0,0.5194014]
[1753171217724,0.646252,118020.0,118010.0,0.5194014]
[1753171218024,0.646252,118020.0,118010.0,1.1556014]
[1753171218524,0.285452,118020.0,118010.0,1.1556014]
[1753171218824,0.0816,118020.0,118010.0,1.5164014]
[1753171219225,0.0816,118020.0,118010.0,1.59252405]
[1753171219820,0.0816,118020.0,118010.0,1.5164014]
[1753171220024,0.0816,118020.0,118010.0,1.59252405]
[1753171220324,0.3608,118050.0,118040.0,0.1693584]
[1753171220525,0.6108,118050.0,118040.0,1.1250384]
[1753171220718,0.780224,118050.0,118040.0,1.1250384]
[1753171220920,0.530224,118050.0,118040.0,1.1250384]
[1753171221327,0.169424,118050.0,118040.0,1.1250384]
[1753171221627,0.174424,118050.0,118040.0,1.1250384]
[1753171222626,0.005,118050.0,118040.0,1.4858384]
[1753171222828,0.008,118050.0,118040.0,1.4858384]
[1753171230635,0.002,118050.0,118040.0,1.4858384]
[1753171230835,0.005,118050.0,118040.0,1.4858384]
[1753171232538,0.005,118050.0,118040.0,0.8934984]
[1753171232926,0.005,118050.0,118040.0,1.5256184]
[1753171233527,0.005,118050.0,118040.0,1.6777284]
[1753171234538,0.005,118050.0,118040.0,1.73847127]
[1753171234733,0.38514,118050.0,118040.0,0.80252127]
[1753171234934,0.554564,118050.0,118040.0,0.67839127]
[1753171235142,0.554564,118050.0,118040.0,0.55010127]
[1753171235143,0.9739081,118050.0,118040.0,0.55010127]
[1753171235732,0.804564,118050.0,118040.0,0.55010127]
[1753171235938,0.9739081,118050.0,118040.0,0.55010127]
[1753171236335,0.804564,118050.0,118040.0,0.55010127]
[1753171236541,0.804564,118050.0,118040.0,0.59867127]
[1753171236840,0.9739081,118050.0,118040.0,0.67839127]
[1753171237238,0.804564,118050.0,118040.0,0.67839127]
[1753171237639,0.9739082,118050.0,118040.0,0.67839127]
[1753171237942,0.804564,118050.0,118040.0,0.67839127]
[1753171239143,0.554564,118050.0,118040.0,0.67839127]
[1753171240545,0.554564,118050.0,118040.0,0.6176484]
[1753171240941,0.7239081,118050.0,118040.0,0.6176484]
[1753171241245,0.7239081,118050.0,118040.0,0.67839127]
[1753171241449,0.8085831,118050.0,118040.0,0.1]
[1753171241642,0.1865528,118030.0,118020.0,0.48580995]
[1753171241839,0.37798,118030.0,118020.0,0.74257995]
[1753171242144,0.7168088,118030.0,118020.0,0.74257995]
[1753171242335,0.9081528,118030.0,118020.0,0.52550985]
[1753171242542,1.0776088,118030.0,118020.0,0.52550985]
[1753171242739,1.0776088,118030.0,118020.0,0.4493872]
[1753171243338,1.0776088,118030.0,118020.0,0.52550985]
[1753171243535,1.0776088,118030.0,118020.0,0.51017434]
[1753171244444,1.0776088,118030.0,118020.0,0.4493872]
[1753171245340,1.0776088,118030.0,118020.0,0.4960172]
[1753171245544,1.0776088,118030.0,118020.0,0.5817672]
[1753171246239,1.0776088,118030.0,118020.0,0.65788985]
[1753171246540,1.09614661,118030.0,118020.0,0.07612265]
[1753171246742,1.09614661,118030.0,118020.0,0.24550995]
[1753171246942,1.09614661,118030.0,118020.0,0.1693873]
[1753171247241,0.2540858,118020.0,118010.0,0.23025288]
[1753171247436,0.2540858,118020.0,118010.0,0.41025288]
[1753171247437,1.2447258,118020.0,118010.0,0.41025288]
[1753171247639,0.1694016,118010.0,118000.0,0.13238]
[1753171247945,0.169416,118000.0,117990.0,0.13238]
[1753171248145,0.1694303,117990.0,117980.0,0.52824575]
[1753171248343,0.1694303,117990.0,117980.0,0.85588545]
[1753171248543,0.1694303,117990.0,117980.0,0.8221231]
[1753171249040,1.2450991,118000.0,117990.0,0.1694304]
[1753171249242,1.2450991,118000.0,117990.0,0.58594631]
[1753171249433,1.3722381,118000.0,117990.0,0.58594631]
[1753171250039,1.3722381,118000.0,117990.0,0.4794304]
[1753171250544,1.160456,118000.0,117990.0,0.6118104]
[1753171250746,1.329872,118000.0,117990.0,0.6118104]
[1753171251239,1.329872,118000.0,117990.0,0.6878653]
[1753171251444,1.329872,118000.0,117990.0,0.6898653]
[1753171253550,1.329872,118000.0,117990.0,0.6138104]
[1753171253949,1.336392,118000.0,117990.0,0.6138104]
[1753171254249,1.336392,118000.0,117990.0,0.68983065]
[1753171254446,1.336392,118000.0,117990.0,0.55745065]
[1753171254651,1.336392,118000.0,117990.0,0.07802025]
[1753171254847,1.336392,118000.0,117970.0,0.51630401]
[1753171254848,0.1694447,117980.0,117970.0,0.51630401]
[1753171255047,1.1612847,117980.0,117970.0,0.85307401]
[1753171255253,1.34947597,117980.0,117970.0,0.7465581]
[1753171255952,1.34947597,117980.0,117970.0,0.85307401]
[1753171256351,1.34947597,117980.0,117970.0,0.7465581]
[1753171256545,0.71843597,117980.0,117970.0,0.7465581]
[1753171256751,1.34987597,117980.0,117970.0,0.85296717]
[1753171257749,1.34987597,117980.0,117970.0,0.87619717]
[1753171258758,1.18043127,117980.0,117970.0,0.87619717]
[1753171259150,1.34987617,117980.0,117970.0,0.48963907]
[1753171259458,1.71067617,117980.0,117970.0,0.16640907]
[1753171260157,0.1694736,117960.0,117950.0,0.15561]
[1753171260359,0.3608,117960.0,117950.0,0.696508]
[1753171260555,1.1631936,117960.0,117950.0,0.729678]
[1753171260755,1.18243932,117960.0,117950.0,0.787288]
[1753171261156,0.54951932,117960.0,117950.0,0.787288]
[1753171261356,1.18263932,117960.0,117950.0,0.787288]
[1753171261654,1.18563932,117960.0,117950.0,0.787288]
[1753171263656,1.19063932,117960.0,117950.0,0.788288]
[1753171264053,0.02724572,117960.0,117950.0,0.788288]
[1753171264354,0.02724572,117960.0,117950.0,1.19913642]
[1753171264558,0.19671932,117960.0,117950.0,1.19913642]
[1753171264958,0.19671932,117960.0,117950.0,1.83285642]
[1753171265154,0.55751932,117960.0,117950.0,1.66336842]
[1753171265466,0.55751932,117960.0,117950.0,1.83273642]
[1753171265662,1.19115932,117960.0,117950.0,1.19913642]
[1753171266861,1.19115932,117960.0,117950.0,1.11933642]
[1753171267065,1.19115932,117960.0,117950.0,1.16596642]
[1753171267466,1.02168572,117960.0,117950.0,1.16596642]
[1753171267658,0.55751932,117960.0,117950.0,0.51661]
[1753171267854,0.1695024,117940.0,117930.0,0.9703368]
[1753171268067,0.5303024,117940.0,117930.0,1.72118522]
[1753171268560,0.5303024,117940.0,117930.0,0.91786842]
[1753171268561,0.8911024,117940.0,117930.0,0.91786842]
[1753171268761,1.54375869,117940.0,117930.0,0.34]
[1753171269064,1.71434269,117940.0,117930.0,0.34]
[1753171269458,1.71592269,117940.0,117930.0,0.34]
[1753171269762,0.1695168,117930.0,117920.0,0.78953]
[1753171269964,0.5344268,117930.0,117920.0,0.86322842]
[1753171270263,0.5344268,117930.0,117920.0,1.49690842]
[1753171270453,0.5344268,117930.0,117920.0,0.86322842]
[1753171270656,0.5344268,117930.0,117920.0,1.49706842]
[1753171270857,0.5344268,117930.0,117920.0,0.45238]
[1753171271465,0.5364268,117930.0,117920.0,0.45238]
[1753171271772,0.5364268,117930.0,117920.0,0.6562011]
[1753171272564,0.5394268,117930.0,117920.0,0.48667]
[1753171273059,0.5394268,117930.0,117920.0,0.47521]
[1753171273368,0.5374268,117930.0,117920.0,0.47521]
[1753171273564,0.5424268,117930.0,117920.0,0.47621]
[1753171273771,0.5424268,117930.0,117920.0,0.6457412]
[1753171273970,0.5424268,117930.0,117920.0,0.47621]
[1753171274867,0.5424268,117930.0,117920.0,0.6457412]
[1753171275773,0.5424268,117930.0,117920.0,0.47621]
[1753171277267,0.5424268,117930.0,117920.0,0.15621]
[1753171278969,0.5424268,117930.0,117920.0,0.25746]
[1753171279864,0.5383168,117930.0,117920.0,0.7469914]
[1753171280178,0.538317,117930.0,117920.0,1.15783982]
[1753171280379,0.538317,117930.0,117920.0,0.98830842]
[1753171280380,0.540847,117930.0,117920.0,0.98830842]
[1753171280875,0.542427,117930.0,117920.0,0.66830842]
[1753171281476,0.540847,117930.0,117920.0,0.66830842]
[1753171281875,0.542427,117930.0,117920.0,0.25746]
[1753171282573,0.542427,117930.0,117920.0,0.16767]
[1753171282776,1.175827,117930.0,117920.0,0.16767]
[1753171284073,1.175827,117930.0,117920.0,0.15621]
[1753171284470,1.175827,117930.0,117920.0,0.13338]
[1753171284670,0.1736416,117920.0,117910.0,0.15704]
[1753171284876,0.5344416,117920.0,117910.0,0.88788842]
[1753171285374,0.5344416,117920.0,117910.0,0.89934842]
[1753171285568,0.5344416,117920.0,117910.0,1.15868452]
[1753171285770,0.5328616,117920.0,117910.0,1.15868452]
[1753171286171,0.5328616,117920.0,117910.0,0.98913842]
[1753171286373,0.36333,117920.0,117910.0,1.15868452]
[1753171286573,0.36533,117920.0,117910.0,1.15868452]
[1753171287080,0.37033,117920.0,117910.0,1.15968452]
[1753171287485,0.007,117920.0,117910.0,0.7488361]
[1753171287671,0.007,117920.0,117910.0,1.15968452]
[1753171287876,0.3678,117920.0,117910.0,1.15968452]
[1753171289075,0.37033,117920.0,117910.0,1.15968452]
[1753171289283,0.37033,117920.0,117910.0,1.79304452]
[1753171290484,0.3678,117920.0,117910.0,1.79304452]
[1753171290978,0.3678,117920.0,117910.0,1.3821961]
[1753171291278,0.007,117920.0,117910.0,2.15384452]
[1753171292073,0.38006073,117930.0,117910.0,2.15384452]
[1753171292074,0.01926073,117930.0,117920.0,0.2707817]
[1753171292278,0.01889629,117940.0,117930.0,0.4278074]
[1753171292579,0.01889629,117940.0,117930.0,2.19353582]
[1753171292888,0.38004572,117960.0,117950.0,0.4277786]
[1753171293088,0.39960296,117960.0,117950.0,1.85286702]
[1753171293279,0.03880296,117960.0,117950.0,1.85286702]
[1753171293583,0.39221572,117960.0,117950.0,1.85286702]
[1753171293888,0.39221572,117960.0,117950.0,0.4277786]
[1753171293889,0.49124728,117960.0,117950.0,0.4277786]
[1753171294083,0.49124728,117960.0,117950.0,0.3036986]
[1753171294381,0.49124728,117960.0,117950.0,0.13421]
[1753171294576,0.49766728,117960.0,117950.0,0.4287786]
[1753171294784,0.45251728,117960.0,117950.0,0.83962702]
[1753171294982,0.49766728,117960.0,117950.0,0.4287786]
[1753171295183,0.49624728,117960.0,117950.0,0.3036986]
[1753171295586,1.13192728,117960.0,117950.0,0.3036986]
[1753171295993,0.23474,117950.0,117940.0,0.3000308]
[1753171296180,0.78380076,117950.0,117940.0,0.3018655]
[1753171296379,0.95336876,117950.0,117940.0,0.2118655]
[1753171296879,0.23474,117940.0,117930.0,0.3424433]
[1753171297078,1.45465643,117940.0,117930.0,0.4524433]
[1753171298376,1.45465643,117940.0,117930.0,0.3424433]
[1753171298776,1.62415993,117940.0,117930.0,0.2542747]
[1753171298980,1.62615993,117940.0,117930.0,0.2542747]
[1753171299187,1.45665643,117940.0,117930.0,0.2542747]
[1753171299489,1.62715993,117940.0,117930.0,0.2542747]
[1753171299787,1.62715993,117940.0,117930.0,0.3026947]
[1753171300184,1.27175468,117940.0,117930.0,0.2542747]
[1753171300386,1.27175468,117940.0,117930.0,0.3885447]
[1753171300590,1.27175468,117940.0,117930.0,0.4238347]
[1753171300894,1.27175468,117940.0,117930.0,0.4544747]
[1753171302487,1.27175468,117940.0,117930.0,0.4238347]
[1753171302687,1.27175468,117940.0,117930.0,0.3885447]
[1753171303492,1.44125818,117940.0,117930.0,0.3026947]
[1753171303886,1.44125818,117940.0,117930.0,0.2542747]
[1753171304094,1.61084218,117940.0,117930.0,0.2542747]
[1753171304595,1.94465418,117940.0,117930.0,0.2542747]
[1753171306189,1.94465418,117940.0,117930.0,0.13631821]
[1753171306381,1.93723778,117940.0,117930.0,0.1695179]
[1753171306580,0.2542821,117930.0,117920.0,0.1695298]
[1753171306785,1.01004816,117930.0,117920.0,0.1695298]
[1753171306985,1.42964816,117930.0,117920.0,0.1695298]
[1753171307195,1.3684941,117930.0,117920.0,0.1695298]
[1753171307392,1.3864066,117930.0,117920.0,0.1695298]
[1753171308196,1.3714941,117930.0,117920.0,0.1695298]
[1753171308994,1.0376821,117930.0,117920.0,0.1695298]
[1753171309196,1.1214941,117930.0,117920.0,0.1695298]
[1753171309593,1.1234941,117930.0,117920.0,0.1695298]
[1753171310097,0.1695467,117910.0,117900.0,0.3512088]
[1753171310298,1.70987043,117910.0,117900.0,0.393598]
[1753171310501,2.04904913,117910.0,117900.0,0.345178]
[1753171310694,1.87950243,117910.0,117900.0,0.259328]
[1753171310996,1.87950243,117910.0,117900.0,0.393598]
[1753171311197,1.87950243,117910.0,117900.0,0.394598]
[1753171312097,1.87950243,117910.0,117900.0,0.419568]
[1753171313195,1.70987043,117910.0,117900.0,0.524208]
[1753171313795,1.37605843,117910.0,117900.0,0.99576945]
[1753171313993,0.21851473,117910.0,117900.0,1.58886842]
[1753171314196,0.63564,117920.0,117910.0,0.4314267]
[1753171314395,0.65447646,117920.0,117910.0,0.84227512]
[1753171314599,0.62532336,117920.0,117910.0,0.84227512]
[1753171314901,0.58493616,117920.0,117910.0,0.84227512]
[1753171315100,0.01883646,117920.0,117910.0,1.53688712]
[1753171315401,6e-08,117920.0,117910.0,1.44036015]
[1753171316006,6e-08,117920.0,117910.0,1.77036015]
[1753171316497,0.00200006,117920.0,117910.0,1.77036015]
[1753171317004,0.00200006,117920.0,117910.0,1.59378815]
[1753171317303,0.00200006,117920.0,117910.0,1.53307512]
[1753171317502,0.00200006,117920.0,117910.0,1.86688712]
[1753171317904,0.00200006,117920.0,117910.0,1.92760015]
[1753171318804,0.00200006,117920.0,117910.0,1.59378815]
[1753171319005,0.00200006,117920.0,117910.0,1.92760015]
[1753171319401,0.52097436,117920.0,117910.0,0.4314267]
[1753171319606,0.35144206,117920.0,117910.0,0.4314267]
[1753171319805,0.52097436,117920.0,117910.0,0.4314267]
[1753171320108,1.52718436,117920.0,117910.0,0.4314267]
[1753171320400,1.52718436,117920.0,117910.0,0.3038167]
[1753171321505,1.94680036,117920.0,117910.0,0.1695467]
[1753171322496,1.61298836,117920.0,117910.0,0.1695467]
[1753171322702,1.94680036,117920.0,117910.0,0.1695467]
[1753171323001,1.96471138,117920.0,117910.0,0.1695467]
[1753171323197,1.94680036,117920.0,117910.0,0.1695467]
[1753171324303,1.69680036,117920.0,117910.0,0.1695467]
[1753171324800,1.69680036,117920.0,117910.0,0.3267867]
[1753171326607,1.52718436,117920.0,117910.0,0.3267867]
[1753171326800,1.52718436,117920.0,117910.0,0.3697467]
[1753171327000,1.51741436,117920.0,117910.0,0.4314267]
[1753171327301,1.52718436,117920.0,117910.0,0.3391067]
[1753171327500,1.52718436,117920.0,117910.0,0.3267867]
[1753171328907,1.19337236,117920.0,117910.0,0.3267867]
[1753171329110,1.52718436,117920.0,117910.0,0.3267867]
[1753171329408,1.52718436,117920.0,117910.0,0.3038167]
[1753171330210,1.52718436,117920.0,117910.0,0.3275567]
[1753171330908,1.52718436,117920.0,117910.0,0.3038167]
[1753171331109,1.52718436,117920.0,117910.0,0.2179667]
[1753171331510,1.52718436,117920.0,117910.0,0.3109967]
[1753171332211,1.19337236,117920.0,117910.0,0.3109967]
[1753171332612,1.52718436,117920.0,117910.0,0.3347367]
[1753171334011,1.52918436,117920.0,117910.0,0.3347367]
[1753171334310,1.53218436,117920.0,117910.0,0.3347367]
[1753171335103,1.53218436,117920.0,117910.0,0.3467367]
[1753171337512,1.19837236,117920.0,117910.0,0.3467367]
[1753171337710,1.53218436,117920.0,117910.0,0.3467367]
[1753171338811,0.65827006,117920.0,117910.0,0.85097512]
[1753171339216,0.64264006,117920.0,117910.0,1.1358624]
[1753171340116,0.64264006,117920.0,117910.0,0.85097512]
[1753171340314,0.92752734,117920.0,117910.0,0.85097512]
[1753171340514,1.47164964,117920.0,117910.0,0.85097512]
[1753171341010,1.46864964,117920.0,117910.0,0.85097512]
[1753171341316,1.51971978,117920.0,117910.0,0.85097512]
[1753171341511,1.51771978,117920.0,117910.0,0.85097512]
[1753171342018,1.34818748,117920.0,117910.0,0.85097512]
[1753171342317,1.18376236,117920.0,117910.0,0.85097512]
[1753171342712,1.34818748,117920.0,117910.0,0.85097512]
[1753171343013,0.63964006,117920.0,117910.0,0.85097512]
[1753171343813,0.00400006,117920.0,117910.0,1.34493254]
[1753171344020,0.63892006,117920.0,117910.0,1.51493254]
[1753171345114,0.63892006,117920.0,117910.0,1.57564557]
[1753171346016,0.63892006,117920.0,117910.0,1.24168815]
[1753171347123,0.63892006,117920.0,117910.0,1.57564557]
[1753171347325,0.63892006,117920.0,117910.0,1.24168815]
[1753171347514,0.63892006,117920.0,117910.0,1.57564557]
[1753171348828,0.63892006,117920.0,117910.0,1.24168815]
[1753171349019,0.63892006,117920.0,117910.0,1.57564557]
[1753171349622,0.63892006,117920.0,117910.0,1.93644557]
[1753171351430,0.63892006,117920.0,117910.0,1.60248815]
[1753171351631,0.00300006,117920.0,117910.0,1.60248815]
[1753171351827,0.00100006,117920.0,117910.0,1.93644557]
[1753171352427,0.00100006,117920.0,117910.0,2.00298356]
[1753171352826,0.56809149,117940.0,117930.0,0.2749079]
[1753171353020,0.01860312,117940.0,117930.0,1.52221374]
[1753171353228,0.01860312,117940.0,117930.0,1.88301374]
[1753171353933,2e-08,117940.0,117930.0,1.88301374]
[1753171354232,1.01460572,117960.0,117950.0,0.2748792]
[1753171354426,1.01460572,117960.0,117950.0,1.03822762]
[1753171354625,1.18408062,117960.0,117950.0,1.03822762]
[1753171354828,1.51803804,117960.0,117950.0,1.03822762]
[1753171355332,1.34856314,117960.0,117950.0,1.03822762]
[1753171355532,1.01460572,117960.0,117950.0,1.03822762]
[1753171356736,0.38004572,117960.0,117950.0,1.03822762]
[1753171357035,1.01448572,117960.0,117950.0,1.03822762]
[1753171357431,1.34844314,117960.0,117950.0,1.03822762]
[1753171357631,1.01448572,117960.0,117950.0,1.03822762]
[1753171358033,1.01500572,117960.0,117950.0,0.6273792]
[1753171358235,1.01500572,117960.0,117950.0,0.96133662]
[1753171358435,1.01500572,117960.0,117950.0,1.37218504]
[1753171358834,2e-08,117960.0,117950.0,1.73298504]
[1753171359235,2e-08,117960.0,117950.0,2.36762504]
[1753171359929,0.00400002,117960.0,117950.0,2.36962504]
[1753171360132,0.01000002,117960.0,117950.0,2.36962504]
[1753171362438,0.01000002,117960.0,117950.0,2.03566762]
[1753171362642,0.01000002,117960.0,117950.0,1.40102762]
[1753171362836,0.38127002,117960.0,117950.0,1.04022762]
[1753171363336,0.37241002,117960.0,117950.0,1.04022762]
[1753171364343,0.37080002,117960.0,117950.0,1.04022762]
[1753171367742,0.37080002,117960.0,117950.0,1.37418504]
[1753171367947,0.01000002,117960.0,117950.0,1.73498504]
[1753171369647,0.01000002,117960.0,117950.0,1.40102762]
[1753171369845,0.01000002,117960.0,117950.0,1.73498504]
[1753171370042,0.01000002,117960.0,117950.0,1.32413662]
[1753171370244,0.01000002,117960.0,117950.0,1.73498504]
[1753171370840,0.01000002,117960.0,117950.0,1.37418504]
[1753171371238,0.01000002,117960.0,117950.0,1.04022762]
[1753171371443,0.2946937,117960.0,117950.0,1.04022762]
[1753171372151,0.01000002,117960.0,117950.0,1.04022762]
[1753171372950,0.37080002,117960.0,117950.0,1.04022762]
[1753171375960,0.6659637,117960.0,117950.0,0.93483762]
[1753171376256,0.8419789,117960.0,117950.0,0.94657762]
[1753171376457,0.8419789,117960.0,117950.0,0.97692762]
[1753171376756,0.8419789,117960.0,117950.0,0.6286992]
[1753171377255,0.55728522,117960.0,117950.0,0.6286992]
[1753171377452,0.8419789,117960.0,117950.0,0.6286992]
[1753171377654,0.8419789,117960.0,117950.0,0.4386992]
[1753171379246,0.8419789,117960.0,117950.0,0.1714892]
[1753171379247,1.12667258,117960.0,117950.0,0.1714892]
[1753171379455,1.29623258,117960.0,117950.0,0.1714896]
[1753171379658,1.29623258,117960.0,117950.0,0.002]
[1753171380052,0.1767496,117950.0,117940.0,0.254243]
[1753171380258,1.45794328,117950.0,117940.0,0.254243]
[1753171380659,1.45794328,117950.0,117940.0,0.394213]
[1753171380953,1.45794328,117950.0,117940.0,0.3518374]
[1753171381153,1.62751128,117950.0,117940.0,0.2118674]
[1753171381459,1.63251128,117950.0,117940.0,0.2128674]
[1753171381658,1.63551128,117950.0,117940.0,0.3528374]
[1753171381853,1.65454727,117950.0,117940.0,0.3528374]
[1753171382758,1.67234373,117950.0,117940.0,0.3528374]
[1753171383358,1.67234373,117950.0,117940.0,0.2587574]
[1753171383552,1.67234373,117950.0,117940.0,0.001]
[1753171383757,0.172624,117940.0,117930.0,0.3942342]
[1753171384059,0.81811768,117940.0,117930.0,0.3942342]
[1753171384250,0.98770168,117940.0,117930.0,0.3942342]
[1753171384451,0.98770168,117940.0,117930.0,0.3518551]
[1753171384651,0.81811768,117940.0,117930.0,0.3518551]
[1753171385159,0.82111768,117940.0,117930.0,0.3528551]
[1753171385458,0.82511768,117940.0,117930.0,0.3538551]
[1753171386653,0.3678,117940.0,117930.0,0.4829551]
[1753171386860,0.99824,117940.0,117930.0,0.89380352]
[1753171387360,0.9982,117940.0,117930.0,0.89380352]
[1753171387749,1.45239768,117940.0,117930.0,0.89380352]
[1753171388254,1.45359768,117940.0,117930.0,0.4829551]
[1753171388450,1.45359768,117940.0,117930.0,0.4203351]
[1753171388656,1.45359768,117940.0,117930.0,0.3782451]
[1753171388855,1.62318168,117940.0,117930.0,0.002]
[1753171389153,1.62318168,117940.0,117930.0,0.1715183]
[1753171390259,1.62318168,117940.0,117930.0,0.002]
[1753171390464,2.79594168,117940.0,117930.0,0.002]
[1753171390760,2.511248,117940.0,117930.0,0.002]
[1753171390960,2.79594168,117940.0,117930.0,0.002]
[1753171391161,2.79594168,117940.0,117930.0,0.0008]
[1753171391464,3.33063536,117940.0,117930.0,0.0008]
[1753171392161,3.04594168,117940.0,117930.0,0.0008]
[1753171392357,3.33063536,117940.0,117930.0,0.0008]
[1753171392656,3.04594168,117940.0,117930.0,0.1703183]